bitfinex/quotes_ETHUSD_20250130
["timestamp","ask_amount","ask_price","bid_price","bid_amount"]
[1738253046650,0.81,3259.8,3259.4,3.06799]
[1738253047008,0.7809,3260.2,3259.6,3.06784]
[1738253047221,3.8482,3260.2,3259.6,3.06784]
[1738253047421,0.0075,3260.1,3259.7,3.06776]
[1738253047709,0.29331617,3260.1,3259.7,3.06776]
[1738253048546,0.29331617,3260.1,3259.5,3.06788]
[1738253048764,3.0676,3259.9,3259.4,0.306799]
[1738253049260,3.0676,3259.9,3259.4,3.06804]
[1738253050046,0.7865,3259.7,3259.2,3.06817]
[1738253050245,0.7865,3259.7,3259.3,3.06807]
[1738253051141,0.7715,3259.7,3259.3,3.06807]
[1738253051367,0.8029,3260.0,3259.6,3.06786]
[1738253051571,0.8029,3260.0,3259.5,3.06788]
[1738253051710,3.0,3260.2,3259.5,1.107888]
[1738253051903,3.0,3260.2,3259.8,3.06763]
[1738253052354,0.8029,3260.3,3259.9,3.06755]
[1738253052654,0.28562386,3260.1,3260.0,3.06748]
[1738253052815,0.28562386,3260.1,3259.8,3.06759]
[1738253053015,0.28562386,3260.1,3259.9,3.06757]
[1738253053211,0.28562386,3260.1,3259.8,3.06759]
[1738253053749,0.8075,3259.9,3259.1,4.33704675]
[1738253053963,0.015,3259.3,3258.5,3.06885]
[1738253054258,0.015,3259.3,3258.7,3.06864]
[1738253054549,0.8075,3259.7,3259.3,3.06808]
[1738253054752,3.83481,3260.0,3259.4,3.06804]
[1738253054956,0.7673,3260.0,3259.6,3.06785]
[1738253055163,0.7673,3260.3,3259.6,3.06785]
[1738253055316,0.015,3260.2,3259.6,3.374635]
[1738253055653,0.015,3260.2,3259.7,3.06772]
[1738253055828,3.08231,3260.2,3259.6,3.374635]
[1738253056151,3.08231,3260.2,3259.7,3.06773]
[1738253056309,0.74166804,3260.1,3259.6,3.374635]
[1738253056652,0.74166804,3260.1,3260.0,3.06748]
[1738253058217,3.35200694,3260.8,3260.2,3.06728]
[1738253058617,0.28525694,3260.8,3260.2,6.13451]
[1738253058846,0.28525694,3260.8,3260.2,3.06723]
[1738253059020,0.28525694,3260.8,3260.3,3.0672]
[1738253059227,3.82321,3260.9,3260.3,3.680643]
[1738253059228,0.28525694,3260.7,3260.3,3.680643]
[1738253059442,0.28525694,3260.7,3260.3,0.613443]
[1738253060157,0.28525694,3260.7,3260.3,3.680603]
[1738253060953,0.28525694,3260.7,3260.6,3.06692]
[1738253062251,0.28525694,3260.7,3260.5,0.7825]
[1738253062568,0.7568,3260.9,3260.4,3.06701]
[1738253063465,0.7568,3260.9,3260.4,3.7417823]
[1738253063963,0.0075,3261.1,3260.6,3.06685]
[1738253064117,0.28525694,3260.8,3260.4,3.06701]
[1738253064315,0.28525694,3260.8,3260.1,0.7821]
[1738253064316,0.28525694,3260.8,3260.7,3.06682]
[1738253064939,0.28525694,3260.8,3260.5,3.067]
[1738253065144,0.28525694,3260.8,3260.5,3.06698]
[1738253065347,0.28525694,3260.8,3260.7,3.06682]
[1738253065543,0.7952,3261.2,3260.7,3.06682]
[1738253065741,3.86157,3261.2,3260.5,3.680396]
[1738253065947,3.08153,3261.1,3260.5,3.06698]
[1738253066128,3.08153,3261.1,3260.0,1.41916517]
[1738253066455,0.015,3261.1,3260.6,3.06688]
[1738253066757,0.28533387,3261.0,3260.5,3.06692]
[1738253067170,0.28533387,3261.0,3260.6,3.06689]
[1738253067332,0.28533387,3261.0,3260.0,1.41916517]
[1738253067333,0.28533387,3261.0,3260.0,1.44983223]
[1738253067540,0.28533387,3261.0,3260.6,3.06684]
[1738253067729,0.015,3261.1,3260.6,3.06684]
[1738253068159,3.08145,3261.1,3260.6,3.06684]
[1738253068324,3.06655,3261.0,3260.5,3.067]
[1738253068657,0.7952,3261.2,3260.7,3.0668]
[1738253068844,0.7952,3261.2,3260.8,3.06666]
[1738253069629,0.7952,3261.2,3260.7,3.0668]
[1738253071363,0.7952,3261.2,3260.8,3.06667]
[1738253072756,3.8616,3261.2,3260.5,6.13389]
[1738253072960,0.7952,3261.2,3260.5,3.06692]
[1738253073268,0.7952,3261.2,3260.8,3.0667]
[1738253074888,0.7952,3261.2,3260.7,3.06675]
[1738253075632,0.7952,3261.2,3261.0,3.06646]
[1738253075831,0.8284,3261.5,3261.0,3.06646]
[1738253076138,3.89448,3261.5,3260.8,3.06673]
[1738253076357,3.06622,3261.4,3260.8,3.06673]
[1738253076732,3.06622,3261.4,3260.8,6.1334]
[1738253076926,3.06622,3261.4,3260.8,3.06667]
[1738253076927,3.08131,3261.3,3260.8,3.06667]
[1738253077133,3.06642,3261.2,3260.6,3.06691]
[1738253077676,3.35190072,3261.2,3260.6,3.06691]
[1738253077969,3.35190072,3261.2,3260.7,3.06681]
[1738253078655,3.88444,3261.1,3260.5,3.06698]
[1738253078864,3.06656,3261.0,3260.4,3.06703]
[1738253079971,3.88435,3261.1,3260.6,3.06686]
[1738253080538,0.8179,3261.1,3260.3,3.06715]
[1738253080754,3.06655,3261.0,3260.4,3.06704]
[1738253080959,3.06655,3261.0,3260.5,3.06698]
[1738253082477,6.06599,3261.6,3260.9,3.06661]
[1738253082770,0.76,3261.5,3260.9,3.06661]
[1738253082977,3.82607,3261.5,3260.9,3.06661]
[1738253083653,0.28591342,3261.4,3260.9,3.06661]
[1738253083857,3.35207342,3261.4,3260.9,3.06661]
[1738253084539,3.06626,3261.3,3260.7,3.06675]
[1738253084872,3.06626,3261.3,3260.5,0.613413]
[1738253084873,3.06656,3261.0,3260.5,3.680333]
[1738253085036,0.7704,3260.9,3260.5,3.06692]
[1738253085235,0.7704,3260.9,3260.5,3.680331]
[1738253085472,3.83705,3260.9,3260.3,3.06717]
[1738253085658,0.7704,3260.9,3260.4,3.06709]
[1738253087060,3.06707,3260.5,3259.8,3.06758]
[1738253087376,3.83706,3260.9,3259.9,0.55]
[1738253087571,6.90377,3260.9,3260.3,3.06713]
[1738253087783,3.83706,3260.9,3260.3,3.06713]
[1738253087954,3.06674,3260.8,3260.3,3.06713]
[1738253088152,3.06684,3260.7,3260.1,3.06733]
[1738253088351,3.06673,3260.8,3260.3,3.06717]
[1738253088960,3.83703,3260.9,3260.4,3.0671]
[1738253089162,3.83703,3260.9,3260.3,3.06717]
[1738253089479,0.8328,3261.2,3261.0,3.06648]
[1738253089698,0.8328,3261.6,3261.2,3.06633]
[1738253089839,0.8328,3261.6,3261.0,3.373128]
[1738253089840,3.89882,3261.6,3261.0,3.373128]
[1738253090161,0.8328,3261.6,3261.1,3.06643]
[1738253090766,0.8328,3261.6,3261.2,3.06632]
[1738253091357,0.8328,3261.6,3261.0,3.373128]
[1738253091557,0.8328,3261.6,3261.1,3.4037428]
[1738253091980,0.8328,3261.6,3261.4,3.06615]
[1738253092182,0.7541,3262.0,3261.5,3.066]
[1738253092383,0.7541,3262.3,3261.8,3.06577]
[1738253092796,0.7541,3262.3,3261.8,3.09642503]
[1738253093081,0.7541,3262.3,3261.8,0.6162255]
[1738253093283,3.06547,3262.2,3261.6,3.06593]
[1738253093493,3.06547,3262.2,3261.1,4.1361128]
[1738253093677,3.06561,3262.0,3261.4,3.06615]
[1738253093871,3.06569,3261.9,3261.4,3.06615]
[1738253094189,3.06561,3262.0,3261.4,3.06615]
[1738253094386,3.06587,3261.8,3261.2,3.06635]
[1738253094591,3.06587,3261.8,3261.2,3.82391208]
[1738253094948,3.06587,3261.8,3261.2,3.82383208]
[1738253095148,3.06587,3261.8,3261.3,3.06624]
[1738253095447,3.83464,3261.6,3261.0,3.06652]
[1738253095786,0.7686,3261.6,3260.8,0.7583]
[1738253095950,0.7686,3261.6,3261.1,3.06642]
[1738253096151,3.83465,3261.6,3260.9,6.13317]
[1738253096485,0.7658,3263.0,3261.6,0.7721]
[1738253096655,0.7658,3262.5,3262.0,3.06559]
[1738253096856,0.7658,3262.5,3261.8,3.06572]
[1738253096857,3.83098,3262.5,3261.8,3.06572]
[1738253097058,3.83098,3262.5,3261.9,3.06561]
[1738253097458,0.7686,3261.9,3261.3,3.06618]
[1738253097651,3.8343,3261.9,3261.4,0.61325]
[1738253097893,0.7686,3261.9,3261.2,3.06632]
[1738253098074,3.0658,3261.8,3261.2,3.06632]
[1738253098278,3.0658,3261.8,3261.2,6.13259]
[1738253098480,0.7686,3261.9,3261.3,3.06625]
[1738253098685,0.7536,3261.9,3261.4,3.06613]
[1738253098989,0.7536,3261.9,3261.4,3.372743]
[1738253099189,0.8109,3262.2,3261.7,3.06586]
[1738253099352,0.8109,3262.2,3261.6,3.06596]
[1738253100927,3.06572,3261.9,3261.2,3.06629]
[1738253101190,0.0075,3261.9,3261.4,3.06608]
[1738253101362,0.0075,3261.9,3261.4,3.66574938]
[1738253101363,3.07322,3261.9,3261.4,3.66574938]
[1738253101576,3.07322,3261.9,3260.7,3.06679]
[1738253101577,3.06611,3261.5,3260.7,3.06679]
[1738253101761,3.06609,3261.5,3260.9,3.06662]
[1738253102091,0.8109,3261.8,3261.0,0.03066345]
[1738253102303,0.7543,3262.2,3261.6,3.06589]
[1738253102811,3.7543,3262.2,3261.7,3.06584]
[1738253103775,0.7543,3262.2,3261.9,3.06562]
[1738253103992,0.015,3262.5,3261.9,3.06562]
[1738253104305,3.06533,3262.3,3261.7,3.06587]
[1738253104481,0.7936,3262.0,3261.5,3.06601]
[1738253104808,3.8531,3262.4,3261.7,3.06585]
[1738253105106,3.8531,3262.4,3261.8,3.06573]
[1738253105799,3.06547,3262.2,3261.6,3.372521]
[1738253106006,3.06547,3262.2,3261.7,3.06586]
[1738253106184,3.85307,3262.4,3261.7,3.06586]
[1738253106185,3.85307,3262.4,3261.8,3.0657]
[1738253106380,3.85307,3262.4,3261.9,0.613156]
[1738253106897,0.7878,3262.4,3261.9,3.678786]
[1738253107268,3.85303,3262.4,3261.9,0.613156]
[1738253107489,3.85303,3262.4,3261.8,3.0657]
[1738253107883,3.06542,3262.2,3261.6,3.372551]
[1738253108090,3.06542,3262.2,3261.7,3.06587]
[1738253108603,6.91833,3262.4,3261.7,3.06587]
[1738253109008,0.0075,3262.5,3261.9,0.8171]
[1738253109205,0.015,3262.5,3262.0,0.388282]
[1738253109411,0.015,3262.5,3262.0,3.06557]
[1738253109412,3.08014,3262.5,3262.0,3.06557]
[1738253109785,3.06528,3262.4,3261.8,3.06572]
[1738253110179,3.06528,3262.4,3261.5,3.06601]
[1738253110180,0.8076,3262.1,3261.5,3.06601]
[1738253110509,3.06528,3262.4,3261.4,0.7935]
[1738253110686,3.06532,3262.3,3261.8,3.06578]
[1738253111473,0.015,3262.4,3261.8,3.06578]
[1738253111683,3.08025,3262.4,3261.8,3.678939]
[1738253112210,3.08025,3262.4,3261.9,3.06569]
[1738253112570,0.219,3262.8,3262.0,0.81815443]
[1738253112571,0.7671,3262.8,3262.0,0.81815443]
[1738253112771,0.7887,3263.3,3262.7,3.06494]
[1738253113011,0.005,3263.4,3263.1,3.06454]
[1738253113716,0.005,3263.4,3263.3,3.06438]
[1738253114377,0.005,3263.4,3263.3,3.09502005]
[1738253114937,0.005,3263.4,3263.3,3.06438]
[1738253116023,0.005,3263.4,3263.3,6.4774531]
[1738253116317,0.005,3263.4,3263.3,10.2596531]
[1738253116530,0.005,3263.4,3263.3,12.02176578]
[1738253118491,0.005,3263.4,3263.3,8.60869268]
[1738253118887,0.005,3263.4,3263.3,12.02176578]
[1738253119738,5.9259831,3264.9,3263.5,0.55]
[1738253120044,3.85806,3264.8,3264.2,3.06353]
[1738253120631,3.06314,3264.7,3264.0,3.06365]
[1738253120833,0.015,3264.5,3263.8,3.06385]
[1738253121054,0.795,3264.4,3263.8,3.06385]
[1738253121344,0.82,3264.7,3264.1,3.06363]
[1738253121510,3.88312,3264.7,3263.9,3.06378]
[1738253121712,0.015,3264.6,3263.9,3.06378]
[1738253122132,3.06326,3264.5,3263.9,6.12753]
[1738253122544,3.06318,3264.6,3264.1,3.06361]
[1738253122863,3.06326,3264.5,3263.9,3.06375]
[1738253123027,3.09384855,3264.6,3264.0,3.06366]
[1738253123028,3.06318,3264.6,3264.0,3.06366]
[1738253123723,3.06327,3264.5,3264.0,3.06366]
[1738253124123,0.82,3264.7,3264.0,3.06366]
[1738253124336,3.06322,3264.6,3264.0,3.06366]
[1738253124839,0.0075,3264.6,3264.0,3.06366]
[1738253125046,0.0075,3264.6,3264.2,3.06353]
[1738253125354,0.82,3264.7,3264.3,3.06337]
[1738253125648,0.0075,3264.9,3264.5,3.06321]
[1738253126030,0.015,3264.9,3264.5,3.06321]
[1738253126717,0.015,3264.9,3264.2,3.06349]
[1738253126951,3.063,3264.8,3264.3,0.4120356]
[1738253127547,0.015,3264.9,3264.3,0.4120356]
[1738253128025,0.8178,3265.8,3264.8,2.8630731]
[1738253128333,3.06218,3265.7,3265.1,3.06266]
[1738253128639,0.015,3265.7,3265.0,6.12541]
[1738253128839,3.07719,3265.7,3265.1,3.06268]
[1738253129055,0.015,3265.7,3265.2,3.06258]
[1738253129228,0.015,3265.7,3265.2,3.675108]
[1738253129428,0.015,3265.7,3265.3,3.06247]
[1738253129615,0.8178,3265.8,3265.4,3.06235]
[1738253130251,3.06228,3265.6,3265.2,0.612528]
[1738253130451,3.87986,3265.8,3265.2,3.675058]
[1738253130630,0.8178,3265.8,3265.4,3.06239]
[1738253131050,0.8178,3265.8,3265.2,3.675058]
[1738253131051,3.87991,3265.8,3265.2,3.675058]
[1738253131778,0.015,3265.6,3264.7,3.06299]
[1738253131944,3.87986,3265.8,3264.9,3.06281]
[1738253132144,3.06229,3265.6,3264.8,3.06289]
[1738253132407,0.8178,3265.8,3264.9,0.0746786]
[1738253132408,0.7809,3265.2,3264.9,0.0746786]
[1738253132565,3.06274,3265.1,3264.9,0.0746786]
[1738253132885,3.06283,3265.0,3264.5,3.0632]
[1738253133203,3.06303,3264.8,3264.2,0.8284]
[1738253133417,0.7765,3264.6,3264.0,3.06366]
[1738253133703,0.7765,3264.6,3264.2,3.06347]
[1738253133881,0.8014,3264.9,3264.3,3.06337]
[1738253134205,3.86433,3264.9,3264.3,3.06337]
[1738253134345,3.06297,3264.8,3264.3,0.612684]
[1738253134548,3.06309,3264.7,3264.1,3.06356]
[1738253134746,3.06316,3264.6,3264.1,3.06356]
[1738253135045,3.86432,3264.9,3264.1,3.06356]
[1738253135046,3.07806,3264.8,3264.1,3.06356]
[1738253135247,3.07806,3264.8,3264.2,3.06349]
[1738253135504,3.07806,3264.8,3263.8,0.7567]
[1738253135505,0.8014,3264.9,3264.5,3.06324]
[1738253135651,0.8014,3264.9,3264.5,3.37262727]
[1738253135847,0.8014,3264.9,3264.5,3.06324]
[1738253136050,3.84996,3265.4,3264.7,3.06305]
[1738253136272,0.7875,3265.4,3264.9,3.06282]
[1738253136500,0.7875,3265.4,3265.0,3.06275]
[1738253136843,0.7875,3265.4,3265.1,3.06264]
[1738253137050,0.7875,3265.4,3265.2,0.306264]
[1738253137280,3.84998,3265.4,3264.7,3.06306]
[1738253137595,0.7875,3265.4,3264.9,3.06281]
[1738253137806,3.84991,3265.4,3264.9,3.06281]
[1738253137972,3.84991,3265.4,3264.7,3.06306]
[1738253137973,3.06255,3265.3,3264.7,3.06306]
[1738253138168,3.84992,3265.4,3264.7,3.757366]
[1738253138374,3.06252,3265.3,3264.7,3.757366]
[1738253138580,3.06252,3265.3,3264.7,6.820366]
[1738253138908,6.91241,3265.4,3264.7,3.757286]
[1738253139211,0.04566855,3265.3,3264.6,0.8168]
[1738253139379,3.06262,3265.2,3264.6,3.06313]
[1738253139766,3.06269,3265.1,3264.6,3.06313]
[1738253140187,3.06262,3265.2,3264.6,3.06313]
[1738253140387,3.06262,3265.2,3264.4,3.06332]
[1738253140566,0.8164,3264.9,3264.1,3.0]
[1738253140782,0.8164,3264.9,3264.4,3.06331]
[1738253141102,0.8164,3264.9,3264.2,3.06347]
[1738253141308,0.8164,3264.9,3264.3,3.06338]
[1738253141309,3.06302,3264.8,3264.3,3.06338]
[1738253141891,3.06302,3264.8,3264.1,3.06354]
[1738253142077,3.06317,3264.6,3264.1,3.06354]
[1738253142682,3.09368855,3264.8,3264.2,3.06352]
[1738253142889,3.06302,3264.8,3264.3,3.06342]
[1738253143274,3.09368855,3264.8,3264.2,0.612706]
[1738253143476,3.06302,3264.8,3264.1,3.06354]
[1738253143694,0.8164,3264.9,3264.4,3.06329]
[1738253143892,3.87933,3264.9,3264.4,3.06329]
[1738253144120,0.8164,3264.9,3264.4,3.06329]
[1738253145323,3.06274,3265.1,3264.6,3.06316]
[1738253146987,3.81344,3265.2,3264.6,0.61570799]
[1738253147197,3.06285,3265.0,3264.2,3.0635]
[1738253147386,3.063,3264.8,3264.1,3.0]
[1738253147823,3.06308,3264.7,3264.2,0.07123856]
[1738253148018,3.06283,3265.0,3264.3,0.30712386]
[1738253148217,3.06274,3265.1,3264.3,0.30712386]
[1738253148510,3.81341,3265.2,3264.6,3.06309]
[1738253148879,3.0628,3265.0,3264.7,0.07095928]
[1738253149079,3.0629,3264.9,3264.7,0.07095928]
[1738253149316,3.06299,3264.8,3264.2,6.87968]
[1738253149512,3.06299,3264.8,3264.2,6.87965]
[1738253149698,3.06299,3264.8,3264.3,4.051345]
[1738253149917,3.06299,3264.8,3264.3,0.987965]
[1738253150094,0.8135,3264.6,3263.9,0.7837]
[1738253150293,3.87672,3264.6,3263.9,0.7837]
[1738253150807,3.06354,3264.2,3263.6,3.41904]
[1738253151013,3.06354,3264.2,3263.6,4.22174]
[1738253151224,3.06366,3264.1,3263.6,4.22174]
[1738253151412,6.12714,3264.2,3263.6,3.41904]
[1738253151718,3.06354,3264.2,3263.7,3.405894]
[1738253152037,3.87668,3264.6,3263.8,3.0639]
[1738253152238,3.87668,3264.6,3264.1,3.06361]
[1738253152382,3.87668,3264.6,3263.9,0.8038]
[1738253152583,0.8135,3264.6,3263.9,0.8038]
[1738253152888,3.87666,3264.6,3264.1,3.06362]
[1738253153101,3.06331,3264.5,3263.9,3.86754]
[1738253153315,3.87666,3264.6,3263.9,3.06374]
[1738253153503,3.06333,3264.5,3263.9,3.06374]
[1738253153698,3.06333,3264.5,3264.0,3.06371]
[1738253153920,3.06333,3264.5,3263.9,3.06374]
[1738253154690,0.8135,3264.6,3264.3,3.06342]
[1738253154887,3.06301,3264.8,3264.3,3.06342]
[1738253155115,0.7845,3264.9,3264.3,3.06342]
[1738253155396,3.84739,3264.9,3264.3,3.06338]
[1738253155600,3.06303,3264.8,3264.2,0.8331]
[1738253155912,0.0075,3264.6,3264.3,0.07137541]
[1738253156123,3.06335,3264.4,3264.3,0.07137541]
[1738253156319,3.06335,3264.4,3263.7,0.341904]
[1738253156320,0.7569,3264.5,3264.1,3.06356]
[1738253156515,0.7569,3264.5,3264.3,0.07133584]
[1738253156707,0.7569,3264.5,3264.2,0.07139114]
[1738253156902,0.7639,3264.8,3264.4,0.07128055]
[1738253157108,0.7639,3264.8,3264.4,3.06329]
[1738253157307,0.7639,3264.8,3264.3,3.06336]
[1738253157500,3.82696,3264.8,3264.5,0.07122526]
[1738253157706,3.82696,3264.8,3264.4,0.07128055]
[1738253157907,0.7639,3264.8,3264.6,0.07116997]
[1738253158109,3.06283,3265.0,3264.5,0.07122526]
[1738253158295,3.06283,3265.0,3264.7,0.07111469]
[1738253158502,3.06283,3265.0,3264.6,0.07116997]
[1738253158837,3.06283,3265.0,3264.7,0.07111469]
[1738253159136,3.09349855,3265.0,3264.7,0.07111469]
[1738253159297,3.06297,3264.8,3264.2,3.06351]
[1738253159493,3.06297,3264.8,3264.2,3.756278]
[1738253159945,3.06297,3264.8,3264.3,3.06344]
[1738253160249,3.06297,3264.8,3264.2,0.692768]
[1738253160538,3.06372,3264.1,3263.6,0.355]
[1738253160750,3.06388,3263.9,3263.6,0.355]
[1738253161040,3.06388,3263.9,3263.3,3.06437]
[1738253161190,0.8296,3264.2,3263.5,3.0641]
[1738253161392,3.81638,3264.5,3263.9,3.82226]
[1738253161629,3.06309,3264.7,3264.0,3.06367]
[1738253161838,3.06322,3264.6,3264.1,0.688593]
[1738253162038,3.06309,3264.7,3264.1,3.78283621]
[1738253162328,3.06309,3264.7,3264.1,3.752203]
[1738253162535,3.06318,3264.6,3264.1,3.752203]
[1738253162731,3.81613,3264.8,3264.1,3.752153]
[1738253162932,3.81613,3264.8,3264.3,3.06344]
[1738253163238,3.06287,3265.0,3264.4,3.13232159]
[1738253164434,3.06297,3264.8,3264.4,0.06901159]
[1738253165034,3.06297,3264.8,3264.5,0.0689563]
[1738253165355,3.06289,3264.9,3264.5,0.0689563]
[1738253165637,3.06289,3264.9,3264.6,0.06890101]
[1738253165843,3.06298,3264.8,3264.6,0.06890101]
[1738253166047,3.06281,3265.0,3264.6,0.06890101]
[1738253166335,3.06298,3264.8,3264.6,0.06890101]
[1738253166522,3.88572855,3264.7,3264.6,0.06890101]
[1738253166698,3.85506,3264.7,3264.6,0.06890101]
[1738253166903,3.06327,3264.5,3263.9,3.06374]
[1738253167135,3.06327,3264.5,3264.0,0.361374]
[1738253167440,3.06327,3264.5,3264.0,0.43056168]
[1738253167638,0.03066855,3264.4,3264.0,0.06918768]
[1738253167815,6.12702,3264.3,3263.7,3.83004]
[1738253168010,3.06351,3264.3,3263.8,0.0692983]
[1738253168217,3.06351,3264.3,3263.7,3.83004]
[1738253168539,3.06361,3264.2,3263.8,0.06934904]
[1738253168729,3.06351,3264.3,3263.8,3.13324904]
[1738253168932,3.06351,3264.3,3263.9,0.3899349]
[1738253169109,3.06351,3264.3,3263.9,0.45922863]
[1738253169641,3.06327,3264.5,3263.9,3.52301863]
[1738253169808,3.06291,3264.9,3264.2,3.06345]
[1738253170000,3.06291,3264.9,3264.4,3.06334]
[1738253170303,3.06291,3264.9,3264.5,0.38223082]
[1738253170499,3.06314,3264.7,3264.5,0.06898731]
[1738253170702,3.06316,3264.6,3264.5,0.06898731]
[1738253170909,0.8088,3264.5,3263.7,0.7765]
[1738253171207,3.06341,3264.4,3263.8,3.06386]
[1738253171859,3.06341,3264.4,3263.9,3.06381]
[1738253172011,3.87206,3264.5,3264.0,0.306381]
[1738253172345,3.06326,3264.5,3264.0,0.211656]
[1738253173002,3.07049,3264.8,3264.0,0.211656]
[1738253173319,3.07049,3264.8,3263.7,3.6395731]
[1738253173320,3.06309,3264.7,3264.2,3.06345]
[1738253174241,3.86154,3265.0,3264.3,3.06336]
[1738253174429,3.86154,3265.0,3264.5,3.06325]
[1738253174631,3.06284,3265.0,3264.5,3.06325]
[1738253175840,3.85237,3265.6,3264.8,3.06297]
[1738253176042,3.85237,3265.6,3265.0,3.8559]
[1738253176251,3.06207,3265.8,3265.2,3.06259]
[1738253176604,3.06222,3265.7,3265.1,3.06262]
[1738253176804,3.06242,3265.4,3265.0,0.7932]
[1738253177712,3.06253,3265.3,3265.0,0.7932]
[1738253177907,3.06242,3265.4,3265.1,0.06848089]
[1738253178353,3.06225,3265.6,3265.1,0.06848089]
[1738253178849,3.06243,3265.4,3265.1,0.06848089]
[1738253179615,3.06259,3265.2,3265.1,0.06848089]
[1738253179822,3.06243,3265.4,3264.8,3.06291]
[1738253180025,0.015,3265.7,3264.9,0.06847027]
[1738253180354,3.06247,3265.4,3264.9,0.06847027]
[1738253180645,3.0625,3265.3,3264.9,0.06847027]
[1738253181012,0.7721,3265.4,3264.9,0.06847027]
[1738253181224,3.06278,3265.0,3264.6,0.7829]
[1738253181556,3.06285,3265.0,3264.7,0.06861745]
[1738253181715,3.06297,3264.8,3264.7,0.06861745]
[1738253182140,3.06302,3264.8,3264.3,0.8124]
[1738253182647,3.06302,3264.8,3264.4,0.06857193]
[1738253183533,3.06282,3265.0,3264.4,0.06857193]
[1738253184052,3.0627,3265.1,3264.6,3.06315]
[1738253184553,3.06281,3265.0,3264.7,0.06615271]
[1738253184852,0.7563,3265.3,3264.7,0.06615271]
[1738253184853,3.06258,3265.3,3264.7,0.06615271]
[1738253185054,3.06238,3265.5,3264.7,0.06615271]
[1738253185575,3.06227,3265.6,3265.0,0.7677]
[1738253185712,1.38110072,3266.1,3265.3,3.06245]
[1738253185917,3.06166,3266.2,3265.6,0.7677]
[1738253186127,6.12379,3266.0,3265.6,0.7677]
[1738253186348,6.12379,3266.0,3265.7,0.06545919]
[1738253186349,3.06206,3265.8,3265.7,0.06545919]
[1738253186657,3.06206,3265.8,3265.2,3.82719]
[1738253186948,3.06206,3265.8,3265.7,0.06545919]
[1738253187150,3.06217,3265.7,3265.2,0.7646]
[1738253187485,3.0623,3265.6,3265.2,0.7646]
[1738253187763,3.06213,3265.7,3265.2,0.7646]
[1738253187930,3.06206,3265.8,3265.2,3.82719]
[1738253188136,6.12417,3265.8,3265.2,4.5544912]
[1738253188744,3.06206,3265.8,3265.3,3.06244]
[1738253189058,3.06215,3265.7,3265.2,4.5544912]
[1738253189266,3.06206,3265.8,3265.2,4.5544912]
[1738253190127,3.06206,3265.8,3265.3,3.06247]
[1738253190465,3.06206,3265.8,3265.4,0.76169612]
[1738253191373,3.06171,3266.2,3265.4,3.82410612]
[1738253191524,3.06171,3266.2,3265.5,3.06224]
[1738253191954,3.06204,3265.8,3265.4,0.76169612]
[1738253192156,3.06204,3265.8,3265.2,0.7646]
[1738253192359,3.06204,3265.8,3265.2,3.82717]
[1738253192569,3.06213,3265.7,3265.2,3.82717]
[1738253192731,3.06204,3265.8,3265.3,0.06337446]
[1738253192732,3.06235,3265.5,3265.3,0.06337446]
[1738253192931,3.06235,3265.5,3264.9,3.06282]
[1738253193130,3.06235,3265.5,3265.4,0.06332202]
[1738253193334,3.06251,3265.3,3264.9,0.7846]
[1738253193683,3.06235,3265.5,3264.9,0.7846]
[1738253193684,3.06236,3265.5,3264.9,0.7846]
[1738253193877,0.015,3265.7,3264.9,0.7846]
[1738253194023,3.06223,3265.6,3265.1,3.06267]
[1738253194231,3.06208,3265.8,3265.3,0.7537]
[1738253194668,3.06223,3265.6,3265.3,0.7537]
[1738253194987,3.06222,3265.6,3265.3,0.7537]
[1738253195269,3.06242,3265.4,3265.0,0.7894]
[1738253195480,3.0626,3265.2,3265.0,0.7894]
[1738253195679,3.06242,3265.4,3265.0,0.7894]
[1738253196189,3.06233,3265.5,3265.0,4.237377]
[1738253197008,3.07708,3265.8,3265.0,4.237377]
[1738253197225,3.06199,3265.9,3265.3,3.06248]
[1738253197503,3.06228,3265.6,3265.0,4.237367]
[1738253197720,3.06214,3265.7,3265.2,3.06252]
[1738253198011,3.06214,3265.7,3265.2,3.4862357]
[1738253198378,3.06226,3265.6,3265.2,0.4237157]
[1738253198579,3.06238,3265.5,3265.0,0.7894]
[1738253199188,6.12478,3265.5,3265.0,0.7894]
[1738253199399,3.06241,3265.4,3265.0,0.7894]
[1738253200416,0.04566855,3265.5,3264.7,0.8076]
[1738253200618,0.04566855,3265.5,3263.9,0.3067]
[1738253200619,3.06342,3264.4,3263.8,3.0639]
[1738253200760,3.06352,3264.3,3263.9,1.11399]
[1738253200961,3.06329,3264.5,3263.9,0.8076]
[1738253201379,3.06347,3264.3,3263.9,0.8076]
[1738253201593,3.06354,3264.2,3263.9,0.8076]
[1738253202336,3.0637,3264.1,3263.5,0.7549]
[1738253202874,3.06378,3264.0,3263.5,0.7549]
[1738253203101,3.06402,3263.7,3263.2,1.09240617]
[1738253203345,3.06402,3263.7,3263.2,1.58516179]
[1738253203525,3.06363,3264.1,3263.2,1.58516179]
[1738253203728,3.06411,3263.6,3263.2,1.09240617]
[1738253204708,0.03066855,3264.0,3263.2,1.09240617]
[1738253204709,3.06374,3264.0,3263.2,4.15682617]
[1738253205010,3.06383,3263.9,3263.4,3.06424]
[1738253205573,3.06383,3263.9,3263.2,4.15682617]
[1738253205925,0.03066855,3263.8,3263.2,1.09240617]
[1738253206116,3.06411,3263.6,3263.2,1.09240617]
[1738253206814,3.06358,3264.2,3263.4,3.06425]
[1738253207009,3.06337,3264.4,3263.7,3.06397]
[1738253207413,3.06337,3264.4,3263.8,3.06391]
[1738253207777,3.06337,3264.4,3263.9,0.05646448]
[1738253207972,3.06334,3264.5,3263.9,0.05646448]